Cogmind - Beta 13 X1 @@@ ROGUE MODE // 2023.09.18 @ 17:59:50 Player: youngster Result: Destroyed by B-75 Beast with Heavy Plasma Cannon Performance ------------- Evolutions (3) 1500 Regions Visited (13) 2600 Robots Destroyed (245) 1225 Value Destroyed (7017) 7017 Prototype IDs (20) 400 Alien Tech Used (1) 200 Bonus (2317) 2317 TOTAL SCORE: 15259 Bonus ------- High Alert Combat Kills 887 Follower Combat Kills 130 Met Imprinter 300 Destroyed Z-Imprinter 1000 Cogmind --------- Core Integrity 0/700 Matter 234/300 Energy 150/150 System Corruption 0% Temperature Cool (12) Movement Hovering (251) Ox3 Location -6/Proximity Caves Parts ------- > --- POWER (3) -------- Micro Nuclear Core > --- PROPULSION (3) --- Gravmag System Zionite Glidesys I > --- UTILITY (5) ------ Experimental Heat Sink Huge Storage Unit > --- WEAPON (3) ------- Improved Datajack > --- INVENTORY (25) --- Zionite Light DM Reactor Zionite Light DM Reactor Armored Treads Carbon-fiber Leg Improved Heat Sink High-capacity Matter Pod (200) Trap Scanner Improved Signal Interpreter Transmission Jammer Graphene Brace Hacking Drone Bay Zionite Laser-S Zionite Laser-S Zionite Laser-S Zionite Phaser-S Zionite Phaser-S Improved EM Pulse Cannon Particle Cannon Improved Grenade Launcher Plasma Cutter Great Maul Peak State ------------ > --- POWER ------------ Micro Nuclear Core Zionite Light DM Reactor > --- PROPULSION ------- Armored Treads Zionite Glidesys I Zionite Glidesys I > --- UTILITY ---------- Huge Storage Unit Improved Sensor Array Seismic Detector Weapon Cycler Zionite Weapon Casing > --- WEAPON ----------- Zionite Phaser-S Light EM Pulse Cannon Heavy Missile Launcher > --- INVENTORY -------- Zionite Light DM Reactor Carbon-fiber Leg Improved Heat Sink Experimental Heat Sink High-capacity Matter Pod Trap Scanner Improved Signal Interpreter Transmission Jammer Graphene Brace Hacking Drone Bay Zionite Laser-S Zionite Laser-S Zionite Laser-S Zionite Phaser-S Improved EM Pulse Cannon Particle Cannon Improved Grenade Launcher Improved Datajack Plasma Cutter Great Maul [Rating: 64] Favorites ----------- Power Micro Nuclear Core Engine Improved Deuterium Engine Power Core Micro Nuclear Core Reactor Zionite Light DM Reactor Propulsion Light Treads Treads Light Treads Leg Carbon-fiber Leg Wheel Armored Wheel Hover Unit Zionite Glidesys I Utility Huge Storage Unit Device Seismic Detector Storage Huge Storage Unit Processor Core Analyzer Protection Hardened Medium Armor Plating Weapon Assault Rifle Energy Gun Zionite Phaser-S Energy Cannon Light EM Pulse Cannon Ballistic Gun Assault Rifle Ballistic Cannon Flak Cannon Launcher Heavy Missile Launcher Impact Weapon Great Maul Special Melee Weapon Datajack Build | -11 -10 -10 -9 -9 -9 -8 -8 -7 -7 -7 -7 -7 -6 ------- Run | Jun Mat Min Mat Min Exi Min Mat Fac Low Low Zio Dee Pro Slots Evolved 6 | . . . 2 . . . 2 2 . . . . . Power 1 | . . . . . . . . 1 . . . . . Propulsion 1 | . . . 1 . . . . . . . . . . Utility 3 | . . . 1 . . . 1 1 . . . . . Weapon 1 | . . . . . . . 1 . . . . . . Parts Attached 331 | 7 26 2 54 12 1 4 68 51 36 17 9 36 8 Power 16 | 1 1 . . 1 . . 3 3 3 1 . 2 1 Engine 7 | 1 1 . . 1 . . 1 . 2 1 . . . Core 7 | . . . . . . . 2 3 1 . . 1 . Reactor 2 | . . . . . . . . . . . . 1 1 Propulsion 74 | 2 9 . 25 2 . . 14 5 5 . 2 7 3 Treads 45 | 2 4 . 17 1 . . 10 4 3 . 1 2 1 Leg 1 | . . . . . . . . . . . . 1 . Wheel 25 | . 5 . 8 1 . . 4 1 2 . 1 3 . Hover 3 | . . . . . . . . . . . . 1 2 Flight . | . . . . . . . . . . . . . . Utility 109 | 2 6 1 12 . . 2 18 21 14 12 . 18 3 Device 66 | 1 1 1 4 . . 1 12 15 10 12 . 6 3 Storage 5 | 1 3 . . . . . . . . . . 1 . Processor 1 | . . . . . . . . . . . . 1 . Hackware . | . . . . . . . . . . . . . . Protection 37 | . 2 . 8 . . 1 6 6 4 . . 10 . Artifact . | . . . . . . . . . . . . . . Weapon 132 | 2 10 1 17 9 1 2 33 22 14 4 7 9 1 Energy Gun 5 | 2 1 . . . . . . . . . . 2 . Energy Cannon 8 | . . . . . . . . . 2 2 1 3 . Ballistic Gun 49 | . 5 1 9 4 . 1 14 9 5 . . 1 . Ballistic Cannon 10 | . . . . . . . 7 . 1 . 1 1 . Launcher 40 | . 4 . 8 4 1 . 7 6 3 2 3 2 . Special Weapon . | . . . . . . . . . . . . . . Impact Weapon 14 | . . . . . . . 5 6 2 . 1 . . Slashing Weapon . | . . . . . . . . . . . . . . Piercing Weapon . | . . . . . . . . . . . . . . Special Melee Weapon 6 | . . . . 1 . 1 . 1 1 . 1 . 1 Unidentified Prototypes 9 | . . . . . . . . . . 1 . 8 . Parts Lost 53 | . . . 3 1 . . 4 9 11 4 . 13 8 Power 9 | . . . . 1 . . 1 2 1 1 . 3 . Propulsion 11 | . . . . . . . 1 2 4 . . 2 2 Utility 20 | . . . 1 . . . 1 3 3 1 . 6 5 Weapon 13 | . . . 2 . . . 1 2 3 2 . 2 1 Highest Loss Streak 10 | . . . 1 1 . . 1 4 10 2 . 8 5 To Critical Strikes . | . . . . . . . . . . . . . . Average Slot Usage (%) 91 | . 94 100 99 97 100 100 99 90 95 86 88 70 84 Engine 7 | . 14 14 11 8 11 11 3 . 3 13 14 3 . Core 3 | . . . . . . . 5 8 10 1 . 5 7 Treads 17 | . 19 14 21 31 33 33 21 15 19 14 14 4 6 Wheel 5 | . 8 14 11 1 . . 5 6 3 7 7 6 . Hover 1 | . . . . . . . . . . . . . 14 Device 16 | . 8 13 7 11 11 10 15 21 22 29 28 13 20 Storage 9 | . 14 14 11 11 11 11 9 7 7 7 7 7 7 Protection 7 | . 5 . 14 11 11 11 11 6 6 . . 6 6 Energy Gun 1 | . 8 . . . . . . . . . . . 6 Energy Cannon 2 | . . . . . . . . . 4 3 6 7 7 Ballistic Gun 11 | . 14 25 21 20 11 21 16 14 11 . . . . Ballistic Cannon 1 | . . . . . . . 7 2 . . 2 . . Launcher 1 | . . 2 . 1 . . . . . . . 6 7 Impact Weapon 2 | . . . . . . . 2 3 2 7 6 1 . Naked Turns . | . . . . . . . . . . . . . . Heaviest Build 137 | 14 93 93 104 102 100 100 121 131 137 116 120 120 106 Greatest Support 71 | 40 40 16 64 64 64 64 66 71 71 12 12 12 37 Greatest Overweight (x) 10 | . 5 5 10 8 1 1 9 10 10 9 9 9 6 Average Overweight (x) 5 | . 3 5 7 2 1 1 5 7 4 8 8 8 2 Largest Inventory Capacity 25 | 8 25 25 25 25 25 25 25 25 25 25 25 25 25 Average Capacity 24 | 7 22 25 25 25 25 25 25 25 25 25 25 25 25 Most Carried 25 | 6 25 25 25 25 25 25 25 25 25 25 25 25 24 Average Carried 23 | 3 18 24 24 24 24 25 24 23 22 24 24 20 21 Final Capacity 25 | 8 25 25 25 25 25 25 25 25 25 25 25 25 25 Final Carried 25 | 6 24 25 25 25 25 25 25 25 23 25 25 24 21 Class Distribution -------------------- 61% | Mutant 24% | Scavenger-Mutant 11% | Tank Dominant Class ---------------- Mutant | -10/Materials Mutant | -10/Mines Mutant | -9/Materials Mutant | -9/Mines Mutant | -9/Exiles Mutant | -8/Mines Tank | -8/Materials Mutant | -7/Factory Scavenger-Mutant | -7/Lower Caves Scavenger-Mutant | -7/Lower Caves Scavenger-Mutant | -7/Zion Mutant | -7/Deep Caves Mutant | -6/Proximity Caves Resources | -11 -10 -10 -9 -9 -9 -8 -8 -7 -7 -7 -7 -7 -6 ----------- Run | Jun Mat Min Mat Min Exi Min Mat Fac Low Low Zio Dee Pro Matter Collected 7751 | 268 437 560 1135 280 141 74 2149 1092 560 430 39 500 86 Remotely . | . . . . . . . . . . . . . . Salvage Created 7654 | 125 486 127 1679 224 . 42 2180 1506 408 417 . 380 80 Parts 437 | 12 31 14 107 30 . 6 130 62 10 15 . 10 10 Haulers Intercepted 13 | . 2 . 6 . . . 5 . . . . . . Recyclers Shooed 6 | . . . 2 1 . . 2 1 . . . . . Parts Field Recycled . | . . . . . . . . . . . . . . Retrieved Matter . | . . . . . . . . . . . . . . Parts Self-Destructed 35 | . . . . . . . . . 9 13 4 . 9 Prevented 3 | . . . . . . . . . 2 1 . . . Kills | -11 -10 -10 -9 -9 -9 -8 -8 -7 -7 -7 -7 -7 -6 ------- Run | Jun Mat Min Mat Min Exi Min Mat Fac Low Low Zio Dee Pro Combat Hostiles Destroyed 184 | . 14 7 34 13 . 3 51 26 8 11 . 13 4 Melee 5 | . . . . . . . 1 2 1 1 . . . Guns 66 | . 9 1 18 4 . 3 17 10 3 . . . 1 Cannons 20 | . . . . . . . 16 . 1 1 . 1 1 AOE 90 | . 5 6 16 9 . . 17 14 2 8 . 11 2 Classes Destroyed 22 | 2 6 . 4 1 . . 4 1 1 . . 3 . Worker 14 | . 2 1 2 . . . 3 6 . . . . . Builder 9 | . . . 2 2 . . 4 1 . . . . . Tunneler 5 | 3 . . . 1 . . 1 . . . . . . Hauler 13 | . 2 . 6 . . . 5 . . . . . . Recycler 14 | 1 . . 3 1 . . 4 5 . . . . . Minesweeper 1 | . . . . . . . . . 1 . . . . Mechanic 1 | . . . . . . . 1 . . . . . . Operator 2 | . . . 1 . . . 1 . . . . . . Watcher 8 | . 3 . . . . . 3 2 . . . . . Swarmer 55 | . 9 6 11 8 . 3 12 . . 3 . . 3 Grunt 71 | . 2 1 10 4 . . 23 20 6 5 . . . Brawler 6 | . . . 3 . . . 2 . . 1 . . . Duelist 6 | . . . . 1 . . 2 1 1 1 . . . Sentry 20 | . . . 10 . . . 8 2 . . . . . Specialist 2 | . . . . . . . 2 . . . . . . Hunter 3 | . . . . . . . 1 1 1 . . . . Programmer 4 | . . . . . . . . 2 . 1 . . 1 Heavy 1 | . . . . . . . 1 . . . . . . Subdweller 3 | . 3 . . . . . . . . . . . . Z-Light 5 | . . . . . . . . . . . . 5 . Decomposer 2 | . . . . . . . . . 2 . . . . Packrat 2 | . . . . . . . . . . 2 . . . Assembled 6 | . . . . . . . . . . . . 6 . Golem 1 | . . . . . . . . . . . . 1 . Best Kill Streak 16 | 4 3 3 6 16 . 3 13 6 3 7 . 3 3 Combat Bots Only 13 | . 3 3 4 13 . 3 8 5 3 7 . 3 3 Max Kills in Single Turn 5 | 1 1 2 4 3 . 1 5 4 1 2 . 2 2 Gunslinging . | . . . . . . . . . . . . . . Exploded 4 | . 1 2 4 2 . . 3 4 1 2 . 2 2 Melee 1 | . . . . . . . 1 1 1 1 . . . Uniques/NPCs Destroyed 1 | . . . . . . . . . . . . 1 . Z-Imprinter (-7/Deep Caves) Combat | -11 -10 -10 -9 -9 -9 -8 -8 -7 -7 -7 -7 -7 -6 -------- Run | Jun Mat Min Mat Min Exi Min Mat Fac Low Low Zio Dee Pro Damage Taken 11383 | 15 567 172 1459 225 . 37 2470 2120 1562 413 . 1950 393 Core 1160 | . 99 11 131 6 . . 203 224 94 88 . 272 32 Absorbed by Shields 632 | . . . . . . . 528 . . 64 . 40 . Redirected to Shielding 429 | . . . . . . . . . . . . 299 130 Ignored by Resistances 114 | . . . 66 . . 12 . 16 20 . . . . Regen/Repaired (Parts) 1228 | . 275 . 218 . . . 496 . . . 239 . . Core Remaining (%) 71 | 100 . 56 . . . 65 63 . . . . . . Volleys Fired 442 | 5 42 7 104 25 . 4 119 41 40 9 . 30 16 Largest 3 | 2 2 2 2 2 . 2 3 3 3 1 . 2 2 Hottest 125 | 80 80 40 69 40 . 40 111 95 112 68 . 125 116 Shots Fired 893 | 10 76 8 203 35 . 8 306 105 80 9 . 34 19 Gun 648 | 10 68 3 194 20 . 8 188 84 57 . . 1 15 Cannon 151 | . . . . . . . 100 9 19 3 . 17 3 Launcher 94 | . 8 5 9 15 . . 18 12 4 6 . 16 1 Special . | . . . . . . . . . . . . . . Kinetic 691 | . 26 3 194 20 . 8 288 93 57 . . 2 . Thermal 32 | 5 18 . . . . . . . . 2 . 7 . Explosive 94 | . 8 5 9 15 . . 18 12 4 6 . 16 1 Electromagnetic 61 | 5 24 . . . . . . . 19 1 . 9 3 Phasic 15 | . . . . . . . . . . . . . 15 Robot Hit Streak 27 | 4 9 2 18 4 . 4 20 27 11 4 . 12 2 Robot Miss Streak 10 | 1 3 1 3 2 . 2 10 3 2 3 . 7 2 Penetration Max 1 | . . . . . . . . 1 . . . . . Secondary Targets 2 | . . . 1 1 . . . . . . . . . Max Gunslinging Chain 1 | . . . 1 1 . . . . . . . . . Shots Hit Robots 631 | 8 48 2 154 15 . 4 214 84 63 11 1 24 3 Core Hits 423 | 4 30 10 78 24 . 3 154 62 19 17 . 19 3 Critical Kills 2 | . . . 1 . . . 1 . . . . . . Critical Parts Destroyed 8 | . . . . . . . 4 2 . 2 . . . Critical Strikes 11 | . 1 . 1 . . . 5 2 . 2 . . . Destroy 4 | . . . 1 . . . 2 1 . . . . . Corrupt 1 | . 1 . . . . . . . . . . . . Smash 6 | . . . . . . . 3 1 . 2 . . . Melee Attacks 81 | . . . . . . . 19 33 2 23 3 1 . Impact 79 | . . . . . . . 19 32 2 23 2 1 . Slashing . | . . . . . . . . . . . . . . Piercing . | . . . . . . . . . . . . . . Sneak Attacks 18 | . . . . . . . 8 8 . 1 1 . . Combat Hostiles . | . . . . . . . . . . . . . . Follow-up Attacks . | . . . . . . . . . . . . . . Damage Inflicted 21941 | 182 1122 345 3456 1262 . 56 6337 4459 1495 1274 . 1623 330 Guns 6783 | 94 575 25 2070 172 . 53 1859 1105 764 . . . 66 Cannons 2193 | . . . . . . . 1404 96 339 51 . 284 19 Explosions 10639 | 88 547 320 1368 1090 . . 2193 2193 356 900 . 1339 245 Melee 2216 | . . . . . . . 797 1062 34 323 . . . Ramming 110 | . . . 18 . . 3 84 3 2 . . . . Kinetic 7729 | . 181 25 2070 172 . 53 3263 1201 764 . . . . Thermal 478 | 142 112 . . . . . . . . 51 . 173 . Explosive 10478 | . 547 320 1368 1090 . . 2193 2193 356 900 . 1266 245 Electromagnetic 864 | 40 282 . . . . . . . 339 . . 184 19 Impact 2216 | . . . . . . . 797 1062 34 323 . . . Slashing . | . . . . . . . . . . . . . . Piercing . | . . . . . . . . . . . . . . Phasic 66 | . . . . . . . . . . . . . 66 Highest Corruption . | . . . . . . . . . . . . . . Average Corruption . | . . . . . . . . . . . . . . Corruption Purged . | . . . . . . . . . . . . . . Corruption Blocked . | . . . . . . . . . . . . . . Overload Shots . | . . . . . . . . . . . . . . Overflow Damage 1507 | . . . 39 31 . . 519 625 47 143 . 30 73 Projectiles 43 | . . . . . . . 15 . 28 . . . . Explosions 303 | . . . 39 31 . . 60 70 . . . 30 73 Melee 1161 | . . . . . . . 444 555 19 143 . . . Knockbacks 53 | . . . 1 . . . 39 9 . 4 . . . Impact 16 | . . . 1 . . . 5 6 . 4 . . . Kinetic 35 | . . . . . . . 32 3 . . . . . Secondary 2 | . . . . . . . 2 . . . . . . Self-Inflicted Damage 1073 | 15 67 17 113 10 . . 64 273 45 130 . 276 63 Shots 30 | 1 4 2 4 1 . . 2 3 2 4 . 6 1 Rammed 18 | . 1 . 1 . . 2 11 2 1 . . . . Targets Rammed 20 | . 1 . 1 . . 2 13 2 1 . . . . Kicked . | . . . . . . . . . . . . . . Crushed 2 | . . . . . . . 2 . . . . . . Highest Temperature 505 | 102 108 1 56 4 . . 505 213 385 73 . 420 159 Average Temperature 97 | 54 31 1 16 2 . . 120 65 163 24 . 148 50 Received Heat Transfer 3425 | . 120 48 546 48 . . 934 735 621 26 . 311 36 Effects 16 | . . . . . . . 7 . 2 . . 7 . Shutdowns 4 | . . . . . . . 2 . 1 . . 1 . Energy Bleed 3 | . . . . . . . 1 . 1 . . 1 . Matter Decay 2 | . . . . . . . 2 . . . . . . Short Circuit 1 | . . . . . . . 1 . . . . . . Damage (minor) 2 | . . . . . . . 1 . . . . 1 . Damage (major) 4 | . . . . . . . . . . . . 4 . Siege Activations . | . . . . . . . . . . . . . . Robots Corrupted 4 | . 1 . . . . . . . 2 . . 1 . Combat Hostiles 2 | . . . . . . . . . 1 . . 1 . Parts Fried 23 | . 3 . . . . . 8 8 2 1 . 1 . Impact Corruptions 32 | . . . . . . . 10 16 1 5 . . . Robots Melted . | . . . . . . . . . . . . . . Combat Hostiles . | . . . . . . . . . . . . . . Parts Melted . | . . . . . . . . . . . . . . Heat Transferred 834 | 275 250 . . . . . . . . 74 . 235 . Parts Sabotaged . | . . . . . . . . . . . . . . Parts Stolen . | . . . . . . . . . . . . . . Parts Stripped . | . . . . . . . . . . . . . . Power Chain Reactions 2 | 1 . . . . . . . . . . . 1 . Missiles Intercepted . | . . . . . . . . . . . . . . Alert | -11 -10 -10 -9 -9 -9 -8 -8 -7 -7 -7 -7 -7 -6 ------- Run | Jun Mat Min Mat Min Exi Min Mat Fac Low Low Zio Dee Pro Peak Influence 902 | 20 175 278 665 693 . 118 813 902 . . . . . Initial 324 | . 13 6 . 259 . . . 324 . . . . . Average 293 | 8 75 92 294 397 . 12 488 487 . . . . . Maximum Alert Level 3 | . . 1 2 2 . . 3 3 . . . . . Low Security (%) 44 | 100 100 83 36 . . 100 16 5 . . . . . Level 1 18 | . . 16 32 57 . . 8 27 . . . . . Level 2 30 | . . . 31 42 . . 54 58 . . . . . Level 3 5 | . . . . . . . 19 8 . . . . . Level 4 . | . . . . . . . . . . . . . . Level 5 . | . . . . . . . . . . . . . . High Security . | . . . . . . . . . . . . . . Max Security . | . . . . . . . . . . . . . . Sterilizations 1 | . . . . . . . 1 . . . . . . Squads Dispatched 22 | . 1 1 2 1 . . 8 9 . . . . . Investigation 4 | . . 1 1 . . . . 2 . . . . . Extermination 3 | . . . . . . . . 3 . . . . . Reinforcement 10 | . 1 . . 1 . . 5 3 . . . . . Assault 5 | . . . 1 . . . 3 1 . . . . . Garrison . | . . . . . . . . . . . . . . Intercept . | . . . . . . . . . . . . . . Searches Triggered . | . . . . . . . . . . . . . . Construction Impeded 3 | . . . . 1 . . . 2 . . . . . Haulers Reinforced . | . . . . . . . . . . . . . . Active Scanning Responses . | . . . . . . . . . . . . . . Cargo Convoy Interrupts . | . . . . . . . . . . . . . . Stealth | -11 -10 -10 -9 -9 -9 -8 -8 -7 -7 -7 -7 -7 -6 --------- Run | Jun Mat Min Mat Min Exi Min Mat Fac Low Low Zio Dee Pro Distress Signals 10 | . . . 4 . . . 3 3 . . . . . Communications Jammed 46 | . . . . . . . . 46 . . . . . Distress Signals 46 | . . . . . . . . 46 . . . . . Times Spotted 258 | . 21 9 49 14 . 4 76 45 10 9 . 18 3 Peak Tracking Total 8 | . 4 5 5 4 . 4 5 8 3 4 . 5 1 Tactical Retreats 15 | . 2 1 6 1 . . . 2 2 . . 1 . Traps | -11 -10 -10 -9 -9 -9 -8 -8 -7 -7 -7 -7 -7 -6 ------- Run | Jun Mat Min Mat Min Exi Min Mat Fac Low Low Zio Dee Pro Traps Triggered 3 | . . . 1 . . . 1 . . . . 1 . Indirectly . | . . . . . . . . . . . . . . Trap Hack Attempts . | . . . . . . . . . . . . . . Triggered . | . . . . . . . . . . . . . . Disarmed . | . . . . . . . . . . . . . . Reprogrammed . | . . . . . . . . . . . . . . Reused 5 | . . . . . . . . . . . . 5 . Traps Extracted . | . . . . . . . . . . . . . . Installed 9 | . . . . . . . . . . . . 9 . Triggered 3 | . 1 . . . . . . . 2 . . . . Most Traps Carried 9 | . . . . . . . . . 9 9 9 9 . Machines | -11 -10 -10 -9 -9 -9 -8 -8 -7 -7 -7 -7 -7 -6 ---------- Run | Jun Mat Min Mat Min Exi Min Mat Fac Low Low Zio Dee Pro Machines Disabled 15 | . . . . 2 . 1 3 4 . . 1 4 . Max in Single Turn 3 | . . . . 1 . . 1 3 . . 1 1 . Machines Repaired . | . . . . . . . . . . . . . . Machines Sabotaged . | . . . . . . . . . . . . . . Overloaded Fab Kills . | . . . . . . . . . . . . . . Hacking | -11 -10 -10 -9 -9 -9 -8 -8 -7 -7 -7 -7 -7 -6 --------- Run | Jun Mat Min Mat Min Exi Min Mat Fac Low Low Zio Dee Pro Machines Accessed 41 | . 7 1 12 . 1 . 10 10 . . . . . Terminals 26 | . 6 . 9 . . . 7 4 . . . . . Fabricators 4 | . . . . . . . . 4 . . . . . Repair Stations 7 | . 1 . 2 . . . 2 2 . . . . . Recycling Units . | . . . . . . . . . . . . . . Scanalyzers 2 | . . . 1 . . . 1 . . . . . . Garrison Access . | . . . . . . . . . . . . . . Total Hacks 127 | . 33 1 32 . 1 . 35 25 . . . . . Successful 67 | . 18 1 18 . 1 . 21 8 . . . . . Failed 58 | . 14 . 13 . . . 14 17 . . . . . Catastrophic 4 | . 1 . 1 . . . . 2 . . . . . Database Lockouts 2 | . 1 . 1 . . . . . . . . . . Manual 61 | . 18 . 19 . 1 . 8 10 . . 5 . . Terminals 77 | . 21 . 25 . . . 21 10 . . . . . Fabricators 9 | . . . . . . . . 9 . . . . . Repair Stations 35 | . 12 . 5 . . . 12 6 . . . . . Recycling Units . | . . . . . . . . . . . . . . Scanalyzers 4 | . . . 2 . . . 2 . . . . . . Garrison Access . | . . . . . . . . . . . . . . Terminal Hacks 22 | . 5 1 5 . 1 . 9 1 . . . . . Record 1 | . . . . . 1 . . . . . . . . Part Schematic 1 | . . . 1 . . . . . . . . . . Robot Schematic 1 | . 1 . . . . . . . . . . . . Robot Analysis 2 | . 1 . . . . . 1 . . . . . . Prototype ID Bank 5 | . 2 . 2 . . . 1 . . . . . . Open Door 1 | . . 1 . . . . . . . . . . . Branch Access Points 1 | . . . . . . . . 1 . . . . . Alert Level 2 | . . . 1 . . . 1 . . . . . . Unreport Threat 3 | . . . . . . . 3 . . . . . . Locate Traps 4 | . 1 . . . . . 3 . . . . . . Hauler Manifests 1 | . . . 1 . . . . . . . . . . Fabricator Hacks 2 | . . . . . . . . 2 . . . . . Network Status 1 | . . . . . . . . 1 . . . . . Load Schematic 1 | . . . . . . . . 1 . . . . . Repair Station Hacks 26 | . 10 . 4 . . . 9 3 . . . . . Scan Component 15 | . 5 . 2 . . . 5 3 . . . . . Repair 11 | . 5 . 2 . . . 4 . . . . . . Recycling Unit Hacks . | . . . . . . . . . . . . . . Scanalyzer 4 | . . . 2 . . . 2 . . . . . . Insert Component 2 | . . . 1 . . . 1 . . . . . . Analyze 2 | . . . 1 . . . 1 . . . . . . Garrison Access Hacks . | . . . . . . . . . . . . . . Unauthorized Hacks 13 | . 3 . 7 . . . 1 2 . . . . . Terminals 13 | . 3 . 7 . . . 1 2 . . . . . Track 1 | . . . 1 . . . . . . . . . . Botnet 10 | . 2 . 5 . . . 1 2 . . . . . Operators 2 | . 1 . 1 . . . . . . . . . . Fabricators . | . . . . . . . . . . . . . . Repair Stations . | . . . . . . . . . . . . . . Recycling Units . | . . . . . . . . . . . . . . Scanalyzers . | . . . . . . . . . . . . . . Garrison Access . | . . . . . . . . . . . . . . Data Cores Recovered 1 | . . . 1 . . . . . . . . . . Used . | . . . . . . . . . . . . . . Hacking Detections 35 | . 7 . 9 . . . 9 10 . . . . . Full Trace Events 3 | . . . . . . . 1 2 . . . . . Feedback Events . | . . . . . . . . . . . . . . Feedback Blocked . | . . . . . . . . . . . . . . Robot Schematics Acquired 5 | . 1 . . . . . . . . . 4 . . Robots Built . | . . . . . . . . . . . . . . Authchips . | . . . . . . . . . . . . . . Time . | . . . . . . . . . . . . . . Total Robot Build Rating . | . . . . . . . . . . . . . . Part Schematics Acquired 18 | . . . 2 . . . 1 . . . 15 . . Parts Built . | . . . . . . . . . . . . . . Authchips . | . . . . . . . . . . . . . . Time . | . . . . . . . . . . . . . . Total Part Build Rating . | . . . . . . . . . . . . . . Parts Repaired 11 | . 5 . 2 . . . 4 . . . . . . Time 358 | . 130 . 64 . . . 164 . . . . . . Parts Recycled . | . . . . . . . . . . . . . . Recycled Matter . | . . . . . . . . . . . . . . Retrieved Matter . | . . . . . . . . . . . . . . Retrieved Components . | . . . . . . . . . . . . . . Parts Scanalyzed 2 | . . . 1 . . . 1 . . . . . . Part Schematics Acquired 2 | . . . 1 . . . 1 . . . . . . Parts Damaged . | . . . . . . . . . . . . . . Bothacking | -11 -10 -10 -9 -9 -9 -8 -8 -7 -7 -7 -7 -7 -6 ------------ Run | Jun Mat Min Mat Min Exi Min Mat Fac Low Low Zio Dee Pro Used RIF Installer . | . . . . . . . . . . . . . . Robots Hacked 2 | . . . . . . . . 1 . . 1 . . Non-combat 1 | . . . . . . . . 1 . . . . . Combat 1 | . . . . . . . . . . . 1 . . Robot Hacks Applied 2 | . . . . . . . . 1 . . 1 . . parse_system 1 | . . . . . . . . . . . 1 . . find_chute 1 | . . . . . . . . 1 . . . . . Relay Couplers Released . | . . . . . . . . . . . . . . Fabnet Peak Effective % . | . . . . . . . . . . . . . . Robots Rewired . | . . . . . . . . . . . . . . Allies Hacked . | . . . . . . . . . . . . . . Hacks Repelled . | . . . . . . . . . . . . . . Allies | -11 -10 -10 -9 -9 -9 -8 -8 -7 -7 -7 -7 -7 -6 -------- Run | Jun Mat Min Mat Min Exi Min Mat Fac Low Low Zio Dee Pro Total Allies 11 | . . 1 . 5 . . . . . . 5 . . Largest Group 5 | . . 1 . 5 5 3 . . . . 5 5 . Highest-Rated Group 279 | . . 31 . 78 78 40 . . . . 279 279 . Highest-Rated Ally 96 | . . 31 . 31 31 16 . . . . 96 96 . Total Orders . | . . . . . . . . . . . . . . Ally Attacks 64 | . . 3 . 9 . 25 . . . . . 27 . Total Damage 1793 | . . 42 . 128 . 221 . . . . . 1402 . Kills 19 | . . 1 . 2 . 6 . . . . . 10 . Allies Corrupted . | . . . . . . . . . . . . . . Allies Melted . | . . . . . . . . . . . . . . Intel | -11 -10 -10 -9 -9 -9 -8 -8 -7 -7 -7 -7 -7 -6 ------- Run | Jun Mat Min Mat Min Exi Min Mat Fac Low Low Zio Dee Pro Robot Analysis Total 2 | . 1 . . . . . 1 . . . . . . Derelict Logs Recovered 6 | . . 2 . 1 . . . . 2 . 1 . . Drone Launches . | . . . . . . . . . . . . . . Drone Recoveries . | . . . . . . . . . . . . . . Exploration | -11 -10 -10 -9 -9 -9 -8 -8 -7 -7 -7 -7 -7 -6 ------------- Run | Jun Mat Min Mat Min Exi Min Mat Fac Low Low Zio Dee Pro Turns Passed 24935 | 118 1736 1178 2215 1510 635 1638 3259 1625 2267 1874 1923 3379 1578 Spaces Moved 10174 | 54 744 643 848 628 275 686 1190 592 876 812 875 1421 530 Core 1 | 1 . . . . . . . . . . . . . Treads 2733 | 53 251 . 5 530 275 686 407 48 478 . . . . Legs 4 | . . . . . . . . . . . . . 4 Wheels 6910 | . 493 643 843 98 . . 783 544 398 812 875 1421 . Hover 526 | . . . . . . . . . . . . . 526 Flight . | . . . . . . . . . . . . . . Fastest Speed 50 | 50 160 175 135 210 230 230 210 210 210 210 210 195 184 Average Speed 217 | 157 188 175 197 226 230 230 222 217 231 212 216 222 277 Slowest Speed 560 | 160 240 175 560 230 230 230 241 243 243 225 225 225 540 Overloaded Moves . | . . . . . . . . . . . . . . Propulsion Burnouts . | . . . . . . . . . . . . . . Robots Hopped . | . . . . . . . . . . . . . . Cave-ins Triggered . | . . . . . . . . . . . . . . Exploration Rate (%) 76 | 3 98 97 91 99 61 99 96 19 85 96 86 79 55 Regions Visited 13 Branch Regions 9 Pre-discovered Areas 2 | . . . . 1 . . . . . . 1 . . Known Exits Taken 2 | . . . . . . 1 . 1 . . . . . Unknown Exits Taken 11 | 1 1 1 1 1 1 . 1 . 1 1 1 1 . Scrap Searched 18 | . . 1 . 1 . 3 . . 3 6 4 . . Spaces Dug 189 | . 8 23 22 . . . 40 29 1 25 . 14 27 Terrain Destroyed 890 | 4 30 38 88 125 . . 226 99 30 103 . 110 37 Melee 38 | . . . . . . . 9 15 1 12 . 1 . Projectile 23 | . . . . . . . 7 1 2 . . . 13 AOE 829 | 4 30 38 88 125 . . 210 83 27 91 . 109 24 Terrain Rammed . | . . . . . . . . . . . . . . Walls Destroyed . | . . . . . . . . . . . . . . Machines Disabled . | . . . . . . . . . . . . . . Actions | -11 -10 -10 -9 -9 -9 -8 -8 -7 -7 -7 -7 -7 -6 --------- Run | Jun Mat Min Mat Min Exi Min Mat Fac Low Low Zio Dee Pro Total 12012 | 73 992 689 1188 674 279 735 1546 764 1042 908 898 1604 620 Wait 704 | 2 150 31 130 8 . 36 76 23 65 36 11 72 64 Move 10161 | 53 743 642 847 627 274 685 1189 591 875 811 874 1420 530 Hop . | . . . . . . . . . . . . . . Pick Up 132 | 6 23 4 21 1 2 2 26 9 14 7 1 16 . Fast Attach 37 | 7 2 . 2 1 . . 10 4 2 3 . 5 1 Attach 72 | . 2 . 4 1 . . 7 14 18 4 1 16 5 Detach 25 | . 1 . . . . . . 9 3 1 . 9 2 Swap 223 | . 22 2 48 10 1 4 51 33 16 11 8 15 2 Drop 106 | . 6 3 31 1 2 2 36 5 6 3 . 11 . Fire 442 | 5 42 7 104 25 . 4 119 41 40 9 . 30 16 Melee 81 | . . . . . . . 19 33 2 23 3 1 . Ram . | . . . . . . . . . . . . . . Kick . | . . . . . . . . . . . . . . Crush 20 | . 1 . 1 . . 2 13 2 1 . . . . Escape Stasis . | . . . . . . . . . . . . . . Rewire . | . . . . . . . . . . . . . . Trap 9 | . . . . . . . . . . . . 9 . Miscellaneous . | . . . . . . . . . . . . . . Route ------- -11/Junkyard -10/Materials (discovered 5 exits: *Mat x3 / *Min x2) -10/Mines (discovered 2 exits: *Mat x2) -9/Materials (discovered 4 exits: *Mat x3 / [*Min]) -9/Mines (discovered 3 exits: *Mat x2 / *Exi) -9/Exiles -8/Mines (discovered 2 exits: *Mat x2) -8/Materials (discovered 3 exits: *Fac x3) -7/Factory (discovered 3 exits: Sto / *Low x2) -7/Lower Caves -7/Lower Caves (discovered 2 exits: [*Fac] / *Zio) -7/Zion (discovered 2 exits: [*Dee] / [*Pro]) -7/Deep Caves -6/Proximity Caves History --------- Turn | Location | Event 11 | -11/Junkyard | Discovered new exit (range 15) 119 | -11/Junkyard | Entered Materials 313 | -10/Materials | Build established: Mutant 416 | -10/Materials | Discovered new exit (range 15) 800 | -10/Materials | Derelicts attacked the area 894 | -10/Materials | Discovered new exit (range 15) 1097 | -10/Materials | Discovered new exit (range 12) 1156 | -10/Materials | Repaired Lgt. Armor Plating 1183 | -10/Materials | Repaired Grenade Launcher 1210 | -10/Materials | Repaired Lgt. Treads 1237 | -10/Materials | Repaired Com. Wheel 1265 | -10/Materials | Repaired Assault Rifle 1310 | -10/Materials | Discovered new exit (range 16) 1679 | -10/Materials | Central database locked down 1733 | -10/Materials | Discovered new exit (range 5) 1855 | -10/Materials | Entered Mines 2018 | -10/Mines | Met a Derelict shopkeep closing up shop 2087 | -10/Mines | Learned location of 1 exit from Materials 2090 | -10/Mines | Received a Mining Laser from a helpful Derelict 2126 | -10/Mines | Discovered new exit (range 8) 2416 | -10/Mines | Discovered new exit (range 7) 2514 | -10/Mines | Learned 8 Materials zone layouts 3033 | -10/Mines | Entered Materials 3033 | -9/Materials | Evolved 2 slots: Propulsion x1, Utility x1 3034 | -9/Materials | Identified exit to Materials 3654 | -9/Materials | Repaired Lgt. Armor Plating? 4109 | -9/Materials | Discovered exit to Materials (range 16) 4932 | -9/Materials | Central database locked down 4937 | -9/Materials | Repaired Reactive Plating? 5033 | -9/Materials | First assault squad dispatched 5194 | -9/Materials | Discovered new exit (range 16) 5248 | -9/Materials | Entered Mines 5545 | -9/Mines | Destroyed 13 combat bots 5638 | -9/Mines | Discovered exit to Materials (range 11) 5930 | -9/Mines | Assisted by bots powering up and referring to "LRC-V3" 6504 | -9/Mines | Learned location of Zion (-7) 6509 | -9/Mines | Discovered exit to Materials (range 5) 6739 | -9/Mines | Deemed a non-threat by the Exiles lab entrance 6741 | -9/Mines | Discovered new exit (range 5) 6758 | -9/Mines | Entered Exiles 6758 | -9/Exiles | Found Exiles lab abandoned 6758 | -9/Exiles | Accompanied by 5 allies 6788 | -9/Exiles | Led the pair of lost Derelicts to a safe place 7357 | -9/Exiles | Discovered new exit (range 14) 7393 | -9/Exiles | Entered Mines 7393 | -8/Mines | Accompanied by 3 allies 7426 | -8/Mines | Discovered exit to Materials (range 7) 9003 | -8/Mines | Discovered exit to Materials (range 13) 9031 | -8/Mines | Entered Materials 9031 | -8/Materials | Evolved 2 slots: Utility x1, Weapon x1 9390 | -8/Materials | Build established: Tank 9623 | -8/Materials | Destroyed 8 combat bots 10199 | -8/Materials | Discovered new exit (range 3) 10231 | -8/Materials | First assault squad dispatched 10657 | -8/Materials | Repaired Arm. Treads? 10766 | -8/Materials | Repaired Hrd. Heavy Armor Plating? 10923 | -8/Materials | Repaired Adv. Treads 10983 | -8/Materials | Repaired Weapon Cycler? 11266 | -8/Materials | Build established: Mutant 11318 | -8/Materials | Discovered new exit (range 11) 12146 | -8/Materials | Sterilization system engaged 12146 | -8/Materials | Non-combat units ordered to evacuate 12235 | -8/Materials | Discovered new exit (range 15) 12246 | -8/Materials | Combat units ordered to evacuate 12290 | -8/Materials | Entered Factory 12290 | -7/Factory | Evolved 2 slots: Power x1, Utility x1 12709 | -7/Factory | Identified exit to Storage 12709 | -7/Factory | Identified exit to Lower Caves 12821 | -7/Factory | Lost 4 parts (1p1n1u1w) 13890 | -7/Factory | First assault squad dispatched 13915 | -7/Factory | Entered Lower Caves 14206 | -7/Lower Caves | Build established: Scavenger-Mutant 14413 | -7/Lower Caves | Learned 4 Factory zone layouts 14608 | -7/Lower Caves | Build established: Tank 15213 | -7/Lower Caves | Lost 10 parts (1p3n3u3w) 15225 | -7/Lower Caves | Learned Factory stockpile data 15433 | -7/Lower Caves | Build established: Scavenger-Mutant 15687 | -7/Lower Caves | Discovered new exit (range 9) 16182 | -7/Lower Caves | Entered another Lower Caves area 16188 | -7/Lower Caves | Core integrity fell below 50% 16203 | -7/Lower Caves | Discovered new exit (range 14) 16221 | -7/Lower Caves | Destroyed 7 combat bots 17105 | -7/Lower Caves | Discovered new exit (range 8) 17523 | -7/Lower Caves | Encountered a Warlord checkpoint 17626 | -7/Lower Caves | Found Alien Artifact 17626 | -7/Lower Caves | Identified Core Expander 17626 | -7/Lower Caves | Installed Core Expander, added new Power slot 18056 | -7/Lower Caves | Entered Zion 18094 | -7/Zion | Acquired unknown access codes intercepted by a Zionite 18197 | -7/Zion | Discovered new exit (range 16) 18715 | -7/Zion | Gained Derelict followers 18819 | -7/Zion | Opened final containment barrier to the Deep Caves 18938 | -7/Zion | Learned location of Storage (-7) 19123 | -7/Zion | Given A8's code to call for help 19166 | -7/Zion | Given the Hacking Drone Bay 19166 | -7/Zion | Found Prototype Device 19520 | -7/Zion | Received a visual enhancement algorithm 19955 | -7/Zion | Enhanced Grunt warped into view, answering call for help 19957 | -7/Zion | Enhanced Grunt warped into view, answering call for help 19973 | -7/Zion | Discovered new exit (range 3) 19973 | -7/Zion | Saw the warning signs outside the Deep Caves entrance 19979 | -7/Zion | Entered Deep Caves 19979 | -7/Deep Caves | Accompanied by 5 allies 20403 | -7/Deep Caves | Z-Facility disabled 20579 | -7/Deep Caves | Attacked by Z-Imprinter 20585 | -7/Deep Caves | Destroyed Z-Imprinter 20621 | -7/Deep Caves | Found Prototype Protection 20625 | -7/Deep Caves | Identified Zio. Weapon Casing 20895 | -7/Deep Caves | Core integrity fell below 20% 20943 | -7/Deep Caves | Lost 8 parts (1p2n3u2w) 21001 | -7/Deep Caves | Found Zio. Weapon Casing 21062 | -7/Deep Caves | Found Prototype Protection 21062 | -7/Deep Caves | Identified Zio. Heavy Carapace 21149 | -7/Deep Caves | Found Zio. Weapon Casing 21178 | -7/Deep Caves | Build established: Mutant 21921 | -7/Deep Caves | Spotted as-69983 21951 | -7/Deep Caves | Destroyed as-69983 21981 | -7/Deep Caves | Lost 4 parts (1p3u) 22596 | -7/Deep Caves | Discovered new exit (range 6) 23358 | -7/Deep Caves | Entered Proximity Caves 24702 | -6/Proximity Caves | Received a Behemoth hack from an annoying Tinkerer 24890 | -6/Proximity Caves | Spotted B-75 Beast 24936 | -6/Proximity Caves | Destroyed by B-75 Beast with Heavy Plasma Cannon Last Messages --------------- 24811_ P-60 Hacker destroyed. 24815_ Gravmag System fries itself beyond repair. 24815_ Acquired 47 matter. 24823_ Imp. Heat Sink fries itself beyond repair. 24824_ Acquired Gravmag System. 24827_ Target Analyzer fries itself beyond repair. 24828_ Shock Rifle fries itself beyond repair. 24857_ LB-R5G(c) slips back into the shadows. 24890_ Imp. Sensor Array destroyed. 24893_ Acquired 6 matter. 24923_ Weapon Cycler destroyed. 24926_ Zio. Weapon Casing destroyed. 24933_ Zio. Glidesys I destroyed. 24933_ Lgt. EM Pulse Cannon destroyed. 24933_ Hvy. Missile Launcher blasted off. 24933_ Knocked back. 24933_ Seismic Detector destroyed. Map ----- +----------------------------------------------------+ | ??# #??????????????????????????? | | ??# ## # #??????????????????????????? | | ?# ?# ## ### ##??????????????????????????? | | # ??# ########????????????????????????????????? | | ???# #???????????????????????????????????????? | | ????# #???????????????????????????????????????? | | ????# ####????????????????????????????????????? | | #???### ##???????????????????????????????????? | | #??### ##??????????????????????????????????? | | ??## ####???????????????????????????????? | | ### ## ##??????????????????????????????? | | #### #??????????????????????????????? | | ##??# ##??????????????????????????????? | | ##### ##???## ##???????????????? ?????????????? | | ###?####?????# #???????????????? ???????????? | | #??????????# #???????????????# ??????????? | | #?????????### ###???????????? ??????????? | | #???#?????# ######??????? ??????????? | | #??## ????# ## ###???? ???????????? | | ###??# ????## # #???? ???????????? | | ?????# ??#;# % ###??# ????????????? | | ???### ??# # ## ? ;#???????????????? | | ??## #?# # ;# #????????????????? | | ??# ## ;##; #????????????????? | | ??# # ;;;; #????????????????? | | ?????# # @BB ##????????????????? | | ?????## # # BB ##?????????????????? | | ### # ### #########??????????????????? | | #?????## ######### #???????????????????????? | | ### #?????## #?##### ##???????????????????????? | | ????? ????# ### #???????????????????????? | | ???????? ??# # ## ##???????????????????????? | | ????????????# # ##????????????????????????? | | ????????????# ###?????????????????????????? | | ????????????# # ##???????????????????????????? | | ????????????### ##???????????????????????????? | | ??????????????# #???????????????????????????? | | ???????????#### ##??????????????????????????? | | ???????????# # ##?????????????????????????? | | ???????????# # ##????????????????????????? | | ???????????# # # ##???????????????????????? | | ???????????# # # # #???????????????????????? | | ???????????## # # # #???????????????????????? | | ????????????## # #???????????????????????? | | ????????????## ## #???????????????????????? | | ????????????# # ###### ##??????????????????????? | | ?????????#### #????## #???##?????????????????? | | ?????????# # #?????# #??# #?????????????????? | | ?????????# #?????# ##?# #??????????????????? | | ?????????# # #?????# ##?# #???????????????????? | +----------------------------------------------------+ Best States ------------- Heat Dissipation 60 Energy Generation 37 Energy Capacity 340 Matter Stores 300 Matter Capacity 300 Sight Range 16 Robot Scan Range 15 Terrain Scan Density 10 Jamming Range 12 Armor Coverage 1200 Resistance: KI 20 Weapon Shielding 100 Weapon Cycling 15 Evasion (%) 40 Core Analysis 6 Recoil Reduction 3 Item Schematics ----------------- Huge Storage Unit | -9/Materials | Hacked Arm. Wheel | -9/Materials | Scanalyzed Hvy. Missile Launcher | -8/Materials | Scanalyzed Shock Absorption System | -7/Zion | Archive Imp. Hardlight Generator | -7/Zion | Archive Imp. Reaction Control System | -7/Zion | Archive System Restoration Module | -7/Zion | Archive Imp. Thermal Generator | -7/Zion | Archive Microactuators | -7/Zion | Archive Tesla Rifle | -7/Zion | Archive Adv. Terrain Scanner | -7/Zion | Archive Imp. Cooling System | -7/Zion | Archive Adv. Terrain Scan Processor | -7/Zion | Archive Lgt. Fission Core | -7/Zion | Archive Lightning Gun | -7/Zion | Archive Magnetic Acceleration Cannon | -7/Zion | Archive Mak. Laser | -7/Zion | Archive Enh. Gauss Cannon | -7/Zion | Archive Robot Schematics ------------------ M-13 Machinist | -10/Materials | Hacked K-01 Serf | -7/Zion | Archive A-02 Transporter | -7/Zion | Archive H-55 Commando | -7/Zion | Archive H-77 Assassin | -7/Zion | Archive Fabricated ------------ Nothing Alien Tech Used ----------------- Core Expander Achievements -------------- None Challenges ------------ None Game ------ Seed MetaSystemTorch Manual? 0 Play Time 02:45:15 Cumulative 429.6 hours Start 2023.08.24 @ 15:13:23 End 2023.09.18 @ 17:59:50 Sessions 27 Manual Loads 0 Difficulty Rogue Special Mode None Game No. 189 Rogue 189 Adventurer 0 Explorer 0 Win Type - Total 10 Types 7/0/1/1/0/0/0/1/0 Lore% 86 Gallery% 92 Achievement% 71 Wizard Run 0 Options --------- ASCII 1 Keyboard 1 Movement Vi Keybinds 0 Fullscreen 2 Font 14/SmallcapsGlow Map View 72x54 Tactical HUD 1 Map Filters NONE Filters NONE Steam 0 RUN: 448ff5f2-c68c-4c0c-acd0-de95f7124561